bitfinex-derivatives/quotes_SOLF0:USTF0_20240902
["timestamp","ask_amount","ask_price","bid_price","bid_amount"]
[1725250334020,9.44,130.01,129.99,0.05799572]
[1725250338518,9.44,130.0,129.99,0.05799572]
[1725250339223,13.2863,130.0,129.99,0.05799572]
[1725250340412,0.05530934,130.02,129.99,0.05799572]
[1725250341623,0.05530934,130.02,129.99,2.04319572]
[1725250341822,0.05530934,130.02,130.0,3.8461]
[1725250342024,0.05530934,130.02,130.0,5.9129]
[1725250342321,0.05530934,130.02,130.0,8.0052]
[1725250348428,0.05530934,130.02,130.01,3.846]
[1725250349227,3.83775397,130.06,130.02,3.8455]
[1725250349430,9.44,130.06,130.02,3.8455]
[1725250349630,13.25181265,130.06,130.02,3.8455]
[1725250350226,0.05212298,130.05,130.03,0.0550175]
[1725250352937,0.05212298,130.05,130.04,3.8451]
[1725250364235,13.2934411,130.05,130.03,0.0550175]
[1725250364533,13.2851,130.04,130.03,0.0550175]
[1725250364738,17.08603364,130.04,130.03,0.0550175]
[1725250366742,7.64603364,130.04,130.03,0.0550175]
[1725250366929,3.80093364,130.04,130.03,0.0550175]
[1725250367135,0.05212298,130.05,130.03,0.0550175]
[1725250367639,3.8689316,130.05,130.03,0.0550175]
[1725250367834,0.05212298,130.05,130.03,0.0550175]
[1725250370440,9.44,130.04,130.03,0.0550175]
[1725250370739,17.04239663,130.04,130.03,0.0550175]
[1725250376241,13.19729663,130.04,130.03,0.0550175]
[1725250378552,17.04239663,130.04,130.03,0.0550175]
[1725250380949,9.44,130.01,129.97,91.24982898]
[1725250381544,9.44,130.0,129.97,91.24982898]
[1725250381740,3.85183475,129.99,129.97,91.30903565]
[1725250386458,3.85183475,129.99,129.97,95.15613565]
[1725250387349,0.05283142,130.0,129.97,95.15613565]
[1725250388252,3.89913142,130.0,129.97,95.15613565]
[1725250389459,3.90683898,129.99,129.97,95.15613565]
[1725250390556,3.90683898,129.99,129.97,91.30903565]
[1725250390557,7.75343898,129.99,129.97,91.30903565]
[1725250390759,7.75343898,129.99,129.97,0.05920667]
[1725250391654,3.8469,129.98,129.97,0.05920667]
[1725250393463,3.90683898,129.99,129.97,0.05920667]
[1725250393961,9.49283142,130.0,129.97,0.05920667]
[1725250394361,13.33923142,130.0,129.97,0.05920667]
[1725250395452,9.49283142,130.0,129.97,0.05920667]
[1725250397266,9.44,129.98,129.97,0.05920667]
[1725250397565,13.25664999,129.98,129.97,0.05920667]
[1725250398262,17.10354999,129.98,129.97,0.05920667]
[1725250402370,13.25664999,129.98,129.91,2.0293]
[1725250402571,9.44,129.95,129.91,2.0293]
[1725250402967,9.44,129.95,129.91,5.8782]
[1725250403372,9.44,129.95,129.92,0.04956834]
[1725250403373,0.05320099,129.94,129.92,0.04956834]
[1725250404082,9.44,129.93,129.92,0.04956834]
[1725250404763,9.44,129.93,129.84,6.1711]
[1725250404962,9.44,129.9,129.84,6.1711]
[1725250405372,9.44,129.88,129.84,6.1711]
[1725250405561,9.44,129.88,129.84,10.0219]
[1725250405766,0.05028665,129.87,129.85,0.05574806]
[1725250406762,0.05028665,129.87,129.85,3.90634806]
[1725250407372,0.05028665,129.87,129.86,3.8504]
[1725250407676,13.2888,129.92,129.84,15.6111]
[1725250407875,13.2888,129.92,129.88,3.8498]
[1725250408167,11.7667,129.99,129.86,9.44]
[1725250408168,4.0717,129.99,129.86,9.44]
[1725250408375,9.44,129.94,129.87,9.44]
[1725250408563,0.05238668,129.92,129.89,0.05740294]
[1725250409377,0.05238668,129.92,129.9,3.8491]
[1725250409575,0.05238668,129.92,129.9,5.8071]
[1725250410475,0.05238668,129.92,129.91,3.849]
[1725250412171,9.49238668,129.92,129.89,0.05740294]
[1725250413277,9.49238668,129.92,129.9,3.8492]
[1725250415673,9.49238668,129.92,129.89,3.90690294]
[1725250416977,9.49238668,129.92,129.9,3.8492]
[1725250418174,9.49238668,129.92,129.9,5.9009]
[1725250418974,9.49238668,129.92,129.89,0.05740294]
[1725250419682,13.34128668,129.92,129.89,0.05740294]
[1725250422988,13.2893,129.9,129.89,0.05740294]
[1725250423486,2.1143,129.93,129.85,2.0647]
[1725250423686,9.44,129.87,129.85,2.0647]
[1725250424375,0.05053612,129.87,129.85,2.12194174]
[1725250425180,0.05053612,129.87,129.85,5.97264174]
[1725250425483,0.05053612,129.87,129.85,2.12194174]
[1725250425980,0.05053612,129.87,129.85,5.97264174]
[1725250426677,0.05053612,129.87,129.85,2.12194174]
[1725250426879,0.05053612,129.87,129.85,0.05724174]
[1725250426880,9.44,129.86,129.85,0.05724174]
[1725250427080,9.44,129.86,129.69,37.62851637]
[1725250427081,9.44,129.86,129.77,9.80438145]
[1725250427289,9.44,129.84,129.8,3.852]
[1725250427989,3.84968607,129.83,129.81,0.05210911]
[1725250428689,0.05733929,129.83,129.81,3.90390911]
[1725250433090,0.05733929,129.83,129.81,0.05210911]
[1725250433291,3.96107436,129.83,129.81,0.05210911]
[1725250433993,0.05733929,129.83,129.81,3.90400911]
[1725250434392,0.05733929,129.83,129.81,0.05210911]
[1725250434601,0.05733929,129.83,129.81,3.90390911]
[1725250436506,0.05733929,129.83,129.82,3.8516]
[1725250436803,142.57497763,130.14,129.82,2.0971]
[1725250436804,3.85675779,129.87,129.82,2.0971]
[1725250437105,17.07349645,129.88,129.82,4.1541]
[1725250437905,0.05268873,129.86,129.84,0.05576321]
[1725250440200,0.05268873,129.86,129.85,3.8507]
[1725250440409,0.05268873,129.86,129.84,0.05576321]
[1725250440898,0.05268873,129.86,129.84,3.90666321]
[1725250441102,9.49268873,129.86,129.84,0.05576321]
[1725250442397,13.34318873,129.86,129.84,0.05576321]
[1725250443612,9.44,129.89,129.84,0.05576321]
[1725250443798,13.34420987,129.89,129.82,11.5371]
[1725250444405,0.05763132,129.87,129.84,0.05417829]
[1725250445007,0.05763132,129.87,129.86,3.8504]
[1725250470824,0.05763132,129.87,129.85,3.8506]
[1725250471021,0.05763132,129.87,129.84,0.05417829]
[1725250471022,9.51763132,129.87,129.84,0.05417829]
[1725250471215,13.36793132,129.87,129.84,0.05417829]
[1725250471417,9.46,129.85,129.84,0.05417829]
[1725250472526,9.46,129.86,129.84,0.05417829]
[1725250475324,13.3105,129.86,129.84,0.05417829]
[1725250477428,9.46,129.86,129.69,7.7108]
[1725250477630,9.46,129.8,129.74,2.076]
[1725250477833,13.29480939,129.8,129.74,5.86460223]
[1725250478520,0.05725156,129.78,129.76,0.05256946]
[1725250479329,0.05725156,129.78,129.77,3.853]
[1725250486033,9.46,129.82,129.76,0.05256946]
[1725250486231,2.0918,129.89,129.78,9.46]
[1725250486539,9.46,129.85,129.78,9.46]
[1725250486833,9.46,129.83,129.77,1.9107]
[1725250487025,0.05713441,129.81,129.79,0.05525843]
[1725250487229,0.05713441,129.81,129.79,3.90775843]
[1725250487938,0.05713441,129.81,129.8,3.8522]
[1725250488334,0.05713441,129.81,129.79,0.05525843]
[1725250488838,0.05713441,129.81,129.79,3.90755843]
[1725250495936,0.05713441,129.81,129.8,3.8522]
[1725250496137,0.05713441,129.81,129.8,13.3122]
[1725250496343,41.69752791,129.93,129.83,3.8512]
[1725250496540,9.46,129.87,129.83,3.8512]
[1725250497338,9.50924213,129.86,129.84,0.05507553]
[1725250499042,9.46,129.85,129.84,0.05507553]
[1725250499445,13.3107,129.85,129.84,0.05507553]
[1725250500149,9.46,129.85,129.84,0.05507553]
[1725250501448,13.41913816,129.86,129.84,0.05507553]
[1725250501648,0.04924213,129.86,129.84,0.05507553]
[1725250502543,0.04924213,129.86,129.85,3.8507]
[1725250502848,1.985,129.92,129.84,9.51507553]
[1725250502849,9.46,129.91,129.84,9.51507553]
[1725250503054,9.46,129.91,129.87,3.8499]
[1725250503548,3.8488,129.92,129.87,3.8499]
[1725250503855,9.50868983,129.91,129.88,0.05861347]
[1725250504054,9.46,129.89,129.88,0.05861347]
[1725250505749,13.3096,129.89,129.88,0.05861347]
[1725250505945,0.04868983,129.91,129.88,0.05861347]
[1725250506263,23.69868983,129.91,129.88,0.05861347]
[1725250507357,27.54778983,129.91,129.88,0.05861347]
[1725250507752,23.69868983,129.91,129.88,0.05861347]
[1725250508058,27.4995,129.9,129.88,0.05861347]
[1725250508948,3.8496,129.89,129.88,0.05861347]
[1725250512752,3.8493,129.9,129.88,0.05861347]
[1725250514655,27.54768983,129.91,129.88,0.05861347]
[1725250515955,27.54768983,129.91,129.81,89.30889351]
[1725250515956,23.65,129.89,129.81,2.0844]
[1725250516163,2.0839,129.92,129.81,2.0844]
[1725250516359,5.8857788,129.92,129.81,2.0844]
[1725250516659,23.65,129.87,129.83,3.8511]
[1725250516969,3.88795132,129.86,129.84,0.05168272]
[1725250517157,0.05548124,129.86,129.84,0.05168272]
[1725250517357,3.83676036,129.86,129.84,0.05168272]
[1725250519767,7.68726036,129.86,129.84,0.05168272]
[1725250522568,3.8507,129.85,129.84,0.05168272]
[1725250524076,23.65,129.85,129.75,2.0052]
[1725250524271,23.65,129.83,129.75,3.9778]
[1725250524574,3.8517,129.82,129.76,3.8532]
[1725250524970,0.05428397,129.8,129.78,0.05185851]
[1725250525260,3.93761088,129.8,129.78,0.05185851]
[1725250525468,0.05428397,129.8,129.78,0.05185851]
[1725250526067,3.95301327,129.8,129.78,0.05185851]
[1725250526369,7.80531327,129.8,129.78,0.05185851]
[1725250527166,3.95301327,129.8,129.78,0.05185851]
[1725250528076,0.05428397,129.8,129.78,0.05185851]
[1725250528571,0.05428397,129.8,129.78,3.90465851]
[1725250531972,0.05428397,129.8,129.79,3.8525]
[1725250532875,3.87601078,129.87,129.79,23.65]
[1725250533175,1.9399,129.88,129.79,23.65]
[1725250533373,3.8508,129.85,129.81,3.8517]
[1725250533578,7.71653717,129.85,129.81,3.8517]
[1725250533770,0.05289072,129.84,129.82,0.05720068]
[1725250535583,0.05289072,129.84,129.82,3.90880068]
[1725250535774,0.05289072,129.84,129.82,0.05720068]
[1725250537083,3.90409072,129.84,129.82,0.05720068]
[1725250542980,0.05289072,129.84,129.82,0.05720068]
[1725250551001,0.05289072,129.84,129.82,3.90880068]
[1725250552388,0.05289072,129.84,129.83,3.8513]
[1725250555793,1.9399,129.88,129.82,0.05720068]
[1725250555794,3.8499,129.88,129.82,0.05720068]
[1725250556002,3.92029264,129.89,129.83,9.46]
[1725250556195,9.46,129.91,129.83,9.46]
[1725250556791,0.05346189,129.88,129.86,3.90300803]
[1725250560398,0.05346189,129.88,129.87,3.8501]
[1725250561496,0.05346189,129.88,129.87,13.3101]
[1725250561698,3.9285164,129.98,129.91,3.8488]
[1725250562006,9.46,129.93,129.87,4.0085]
[1725250562201,3.81852479,129.92,129.87,4.0085]
[1725250562699,0.05663997,129.91,129.88,0.05443688]
[1725250562894,0.05663997,129.91,129.89,3.8494]
[1725250563696,0.05663997,129.91,129.9,3.8493]
[1725250573600,0.05663997,129.91,129.88,0.05443688]
[1725250573804,9.46,129.9,129.88,0.05443688]
[1725250574500,3.8496,129.89,129.88,0.05443688]
[1725250575104,13.3093,129.9,129.88,0.05443688]
[1725250576013,3.8496,129.89,129.88,0.05443688]
[1725250579316,3.8499,129.88,129.84,3.8509]
[1725250579616,9.46,129.87,129.83,5.9555]
[1725250580219,0.05259445,129.86,129.84,0.04862356]
[1725250580717,9.51259445,129.86,129.84,0.04862356]
[1725250580923,3.88521056,129.85,129.84,0.04862356]
[1725250581515,3.82989373,129.85,129.84,0.04862356]
[1725250581713,0.05259445,129.86,129.84,9.50862356]
[1725250581914,0.05259445,129.86,129.85,9.46]
[1725250582417,0.05259445,129.86,129.85,13.3107]
[1725250582623,9.46,129.91,129.85,13.3107]
[1725250582624,9.46,129.91,129.85,9.46]
[1725250583421,9.46,129.91,129.88,3.8498]
[1725250583624,0.04974528,129.89,129.88,3.8498]
[1725250592225,0.04974528,129.89,129.88,5.9188]
[1725250593529,0.04974528,129.89,129.88,19.30930384]
[1725250593832,3.8412092,129.93,129.91,3.8489]
[1725250594730,3.89046069,129.93,129.91,3.90004925]
[1725250595933,13.35046069,129.93,129.91,0.05114925]
[1725250596636,17.19886069,129.93,129.91,0.05114925]
[1725250597333,3.8487,129.92,129.91,0.05114925]
[1725250600142,17.19886069,129.93,129.91,0.05114925]
[1725250600438,3.89046069,129.93,129.91,0.05114925]
[1725250602328,3.89046069,129.93,129.91,3.89994925]
[1725250602943,0.04925149,129.93,129.91,3.89994925]
[1725250603236,3.85659447,129.93,129.91,3.89994925]
[1725250603441,0.04925149,129.93,129.91,3.89994925]
[1725250603634,13.35765149,129.93,129.91,0.05114925]
[1725250603835,9.50925149,129.93,129.91,0.05114925]
[1725250604338,13.40164681,129.93,129.91,0.05114925]
[1725250605440,3.8487,129.92,129.91,0.05114925]
[1725250606241,17.25014681,129.93,129.91,0.05114925]
[1725250607832,3.89775149,129.93,129.91,0.05114925]
[1725250608035,0.04925149,129.93,129.91,0.05114925]
[1725250608743,0.04925149,129.93,129.92,9.46]
[1725250609040,3.8468,129.99,129.95,3.8477]
[1725250610045,0.0520551,129.98,129.96,0.05144824]
[1725250610646,0.0520551,129.98,129.96,3.89894824]
[1725250610847,0.0520551,129.98,129.96,0.05144824]
[1725250611250,0.0520551,129.98,129.96,9.51144824]
[1725250612053,0.0520551,129.98,129.96,23.68144824]
[1725250612447,0.0520551,129.98,129.97,3.8472]
[1725250618860,3.82470579,130.02,130.0,3.8461]
[1725250619063,3.8452,130.04,130.0,3.8461]
[1725250619560,7.62644759,130.04,130.0,3.8461]
[1725250619757,7.62644759,130.04,130.01,0.05856922]
[1725250620057,0.05309401,130.03,130.01,0.05856922]
[1725250621558,0.05309401,130.03,130.02,3.8457]
[1725250624462,0.05309401,130.03,130.01,0.05856922]
[1725250625165,0.05309401,130.03,130.01,3.90456922]
[1725250625964,0.05309401,130.03,130.02,3.8457]
[1725250629767,0.05309401,130.03,130.01,3.90446922]
[1725250630072,0.05309401,130.03,130.01,0.05856922]
[1725250630565,3.89869401,130.03,130.01,0.05856922]
[1725250633577,23.63,130.02,129.95,2.0846]
[1725250634071,9.46,130.02,129.95,11.5446]
[1725250634572,0.05534612,130.0,129.97,0.05170434]
[1725250635268,0.05534612,130.0,129.97,3.89870434]
[1725250636275,3.81538461,129.99,129.97,0.05170434]
[1725250638468,9.51534612,130.0,129.97,0.05170434]
[1725250638964,3.8468,129.99,129.97,0.05170434]
[1725250639173,7.64055336,129.99,129.97,0.05170434]
[1725250639866,3.8469,129.98,129.97,0.05170434]
[1725250640574,7.74681537,129.98,129.97,0.05170434]
[1725250642678,3.8466,129.99,129.97,0.05170434]
[1725250643378,3.83558893,129.99,129.97,0.05170434]
[1725250643772,3.80942845,129.98,129.97,0.05170434]
[1725250643978,3.8469,129.98,129.97,0.05170434]
[1725250644179,7.65902144,129.98,129.97,0.05170434]
[1725250644382,0.05534612,130.0,129.97,0.05170434]
[1725250644877,3.83135709,129.99,129.97,0.05170434]
[1725250645472,0.05534612,130.0,129.97,3.89890434]
[1725250645673,3.82096984,129.99,129.97,3.89890434]
[1725250648172,3.8469,129.98,129.97,0.05170434]
[1725250648371,7.75289142,129.98,129.97,0.05170434]
[1725250648579,3.90599142,129.98,129.97,0.05170434]
[1725250648774,23.69534612,130.0,129.97,0.05170434]
[1725250649282,3.8468,129.99,129.97,0.05170434]
[1725250649482,7.72594778,129.99,129.97,0.05170434]
[1725250649982,3.8469,129.98,129.97,0.05170434]
[1725250653585,3.8476,129.96,129.93,2.0363]
[1725250654485,3.89758521,129.96,129.93,2.0865939]
[1725250658390,3.89758521,129.96,129.93,5.9348939]
[1725250662201,0.04998521,129.96,129.93,5.9348939]
[1725250663296,0.04998521,129.96,129.94,3.8481]
[1725250663790,0.04998521,129.96,129.95,3.8478]
[1725250668103,0.04998521,129.96,129.95,13.3078]
[1725250678413,0.04998521,129.96,129.95,3.8478]
[1725250678602,0.04998521,129.96,129.94,3.848]
[1725250680512,0.04998521,129.96,129.93,2.0865939]
[1725250681712,3.89768521,129.96,129.93,0.0502939]
[1725250682402,0.04998521,129.96,129.93,0.0502939]
[1725250685118,0.04998521,129.96,129.93,3.8986939]
[1725250686016,3.8478,129.95,129.93,0.0502939]
[1725250686216,9.46,129.94,129.93,0.0502939]
[1725250686421,9.46,129.94,129.88,103.49470575]
[1725250686716,13.3089,129.92,129.88,99.55626789]
[1725250686915,0.1587,129.98,129.88,99.55626789]
[1725250687110,0.1587,129.98,129.89,3.8495]
[1725250687111,13.3083,129.94,129.89,3.8495]
[1725250687309,0.05278684,129.93,129.9,0.05322558]
[1725250687614,3.90138684,129.93,129.9,0.05322558]
[1725250687814,0.05278684,129.93,129.9,0.05322558]
[1725250688115,9.46,129.92,129.9,0.05322558]
[1725250688316,13.309,129.91,129.9,0.05322558]
[1725250699921,3.8503,129.87,129.82,3.85334872]
[1725250700221,3.9546,129.93,129.82,3.85334872]
[1725250700222,9.46,129.88,129.82,3.85334872]
[1725250700615,9.46,129.88,129.81,100.59638078]
[1725250700915,0.05151483,129.86,129.83,0.05141094]
[1725250701115,3.85030846,129.86,129.83,0.05141094]
[1725250701317,7.70090846,129.86,129.83,3.90261094]
[1725250703423,0.05151483,129.86,129.83,0.05141094]
[1725250703625,0.05151483,129.86,129.84,9.46]
[1725250704126,0.05151483,129.86,129.85,17.20613389]
[1725250704424,3.8494,129.9,129.85,13.35543389]
[1725250704822,3.8494,129.9,129.86,5.8695]
[1725250705221,3.8494,129.9,129.86,2.0192]
[1725250705428,0.05186206,129.89,129.87,3.90905083]
[1725250705822,0.05186206,129.89,129.87,0.05895083]
[1725250706328,0.05186206,129.89,129.88,3.8498]
[1725250707623,0.05186206,129.89,129.87,0.05895083]
[1725250727338,0.05186206,129.89,129.87,9.51895083]
[1725250727742,3.81492881,129.94,129.88,9.46]
[1725250728055,3.8485,129.93,129.89,3.8494]
[1725250728441,13.3085,129.93,129.89,3.8494]
[1725250728846,3.90781282,129.92,129.9,0.05504135]
[1725250730248,0.05911282,129.92,129.9,0.05504135]
[1725250739656,0.05911282,129.92,129.91,3.849]
[1725250741769,9.51911282,129.92,129.9,0.05504135]
[1725250742670,13.309,129.91,129.9,0.05504135]
[1725250744071,3.8502,129.87,129.84,3.851]
[1725250744269,9.46,129.88,129.83,3.93204341]
[1725250744565,9.46,129.9,129.83,13.39204341]
[1725250744965,0.05885701,129.88,129.85,3.90361218]
[1725250750478,3.90875701,129.88,129.85,3.90361218]
[1725250752174,3.83190698,129.87,129.85,3.90361218]
[1725250752578,3.83190698,129.87,129.85,0.05291218]
[1725250752981,13.36875701,129.88,129.85,0.05291218]
[1725250753778,9.46,129.87,129.85,0.05291218]
[1725250753978,9.46,129.86,129.85,0.05291218]
[1725250755281,13.3104,129.86,129.85,0.05291218]
[1725250756577,3.8504,129.86,129.85,0.05291218]
[1725250757867,7.7110849,129.87,129.85,0.05291218]
[1725250758077,9.51885701,129.88,129.85,0.05291218]
[1725250758580,3.8504,129.86,129.85,0.05291218]
[1725250758778,7.70292214,129.86,129.85,0.05291218]
[1725250763285,3.85252214,129.86,129.85,0.05291218]
[1725250763481,3.90885701,129.88,129.85,0.05291218]
[1725250764177,3.78291329,129.87,129.85,0.05291218]
[1725250764381,0.05885701,129.88,129.85,9.51291218]
[1725250764979,0.05885701,129.88,129.87,3.8501]
[1725250765781,0.05885701,129.88,129.86,3.8504]
[1725250767779,0.05885701,129.88,129.85,3.90361218]
[1725250769588,3.88405573,129.87,129.85,3.90361218]
[1725250772491,3.8504,129.86,129.85,0.05291218]
[1725250779693,13.3104,129.86,129.85,0.05291218]
[1725250791104,3.8504,129.86,129.85,0.05291218]
[1725250791305,13.3104,129.86,129.85,0.05291218]
[1725250795603,3.852,129.81,129.77,4.0357]
[1725250795904,9.46,129.8,129.77,1.9912]
[1725250796106,13.31512977,129.8,129.77,1.9912]
[1725250796313,3.85512977,129.8,129.77,1.9912]
[1725250796605,9.46,129.82,129.77,1.9912]
[1725250796914,3.90113361,129.8,129.77,2.0447116]
[1725250799006,3.90113361,129.8,129.77,0.0535116]
[1725250799007,9.50883361,129.8,129.77,0.0535116]
[1725250799913,3.8527,129.79,129.77,0.0535116]
[1725250803311,3.90113361,129.8,129.77,0.0535116]
[1725250803511,0.04883361,129.8,129.77,0.0535116]
[1725250803818,0.04883361,129.8,129.77,9.5135116]
[1725250804113,0.04883361,129.8,129.78,5.9253]
[1725250804620,0.04883361,129.8,129.78,2.0727]
[1725250805512,3.8511,129.84,129.79,13.39459671]
[1725250805706,3.91918958,129.83,129.79,13.39459671]
[1725250805913,3.8511,129.84,129.79,9.46]
[1725250806313,3.83406517,129.83,129.8,3.852]
[1725250806610,3.88407865,129.83,129.8,3.91002652]
[1725250807011,0.05001348,129.83,129.8,3.91002652]
[1725250807707,0.05001348,129.83,129.8,0.05802652]
[1725250807708,9.46,129.82,129.8,0.05802652]
[1725250808215,3.90141348,129.83,129.8,0.05802652]
[1725250808408,13.36141348,129.83,129.8,0.05802652]
[1725250808914,3.8517,129.82,129.8,0.05802652]
[1725250812118,3.90141348,129.83,129.8,0.05802652]
[1725250812324,13.36141348,129.83,129.8,0.05802652]
[1725250814820,0.05001348,129.83,129.8,0.05802652]
[1725250815221,3.8374656,129.83,129.8,0.05802652]
[1725250815524,0.05001348,129.83,129.8,3.91012652]
[1725250816022,3.88484727,129.83,129.8,3.91012652]
[1725250816226,0.05001348,129.83,129.8,3.91012652]
[1725250819316,0.05001348,129.83,129.81,3.8518]
[1725250820325,0.05001348,129.83,129.8,0.05802652]
[1725250820532,0.05001348,129.83,129.82,3.8516]
[1725250827641,9.46,129.87,129.84,3.8509]
[1725250827842,13.3099,129.88,129.84,3.8509]
[1725250828749,0.05727823,129.87,129.85,0.05909256]
[1725250828941,3.79340879,129.86,129.85,3.90979256]
[1725250829746,3.79340879,129.86,129.85,0.05909256]
[1725250831350,0.05727823,129.87,129.85,0.05909256]
[1725250831736,9.46,129.86,129.85,0.05909256]
[1725250831935,9.46,129.86,129.78,3.85500885]
[1725250832137,41.69761703,129.87,129.78,3.85500885]
[1725250832138,9.46,129.81,129.78,2.0119]
[1725250832344,13.312,129.81,129.77,98.88189917]
[1725250832651,9.46,129.79,129.77,98.88189917]
[1725250832947,13.38854392,129.79,129.75,2.0119]
[1725250833150,13.44682334,129.79,129.77,0.05649876]
[1725250839950,17.29942334,129.79,129.77,0.05649876]
[1725250841258,9.46,129.78,129.65,3.89928389]
[1725250841452,9.46,129.73,129.67,9.46]
[1725250842147,3.86361204,129.72,129.7,0.04905516]
[1725250844254,17.17821204,129.72,129.7,0.04905516]
[1725250845351,3.8549,129.71,129.7,0.04905516]
[1725250845547,13.3149,129.71,129.7,0.04905516]
[1725250846453,11.5811,129.71,129.55,3.9121]
[1725250846650,9.46,129.66,129.59,9.46]
[1725250846843,9.46,129.66,129.6,3.87595405]
[1725250847242,9.46,129.66,129.59,9.46]
[1725250847243,9.46,129.63,129.55,5.8653]
[1725250847458,0.05252367,129.6,129.58,0.04907378]
[1725250848552,3.91072367,129.6,129.58,0.04907378]
[1725250849660,0.05252367,129.6,129.58,0.04907378]
[1725250850852,3.91072367,129.6,129.58,0.04907378]
[1725250851757,23.76252367,129.6,129.5,25.8087]
[1725250851961,23.71,129.6,129.5,29.7318]
[1725250852153,3.8589,129.58,129.54,3.8599]
[1725250852657,0.05209404,129.57,129.55,0.05042552]
[1725250855065,0.05209404,129.57,129.55,3.90982552]
[1725250855460,0.05209404,129.57,129.56,3.8594]
[1725250855870,0.05209404,129.57,129.55,0.05042552]
[1725250858566,0.05209404,129.57,129.55,3.91002552]
[1725250859365,0.05209404,129.57,129.56,3.8594]
[1725250859566,0.05209404,129.57,129.56,5.8149]
[1725250860662,0.05209404,129.57,129.55,0.05042552]
[1725250861664,0.05209404,129.57,129.55,3.90982552]
[1725250862566,0.05209404,129.57,129.55,0.05042552]
[1725250863571,0.05209404,129.57,129.55,3.91002552]
[1725250866971,0.05209404,129.57,129.55,0.05042552]
[1725250866972,3.91119404,129.57,129.55,0.05042552]
[1725250867571,3.83324075,129.56,129.55,0.05042552]
[1725250868570,27.5694,129.56,129.55,0.05042552]
[1725250868779,31.39020567,129.56,129.55,0.05042552]
[1725250869276,3.82080567,129.56,129.55,0.05042552]
[1725250869869,0.05209404,129.57,129.55,0.05042552]
[1725250870969,0.05209404,129.57,129.55,3.91012552]
[1725250872485,0.05209404,129.57,129.56,3.8594]
[1725250875075,0.05209404,129.57,129.55,3.90992552]
[1725250875878,0.05209404,129.57,129.56,3.8594]
[1725250876981,3.82584226,129.63,129.59,3.8582]
[1725250877180,9.49,129.62,129.59,3.8582]
[1725250878090,9.5396004,129.62,129.59,3.91108002]
[1725250879178,9.49,129.61,129.59,3.91108002]
[1725250879573,0.0496004,129.62,129.59,0.05288002]
[1725250879574,9.49,129.6,129.59,0.05288002]
[1725250879772,9.49,129.61,129.59,0.05288002]
[1725250882184,9.49,129.61,129.59,3.91128002]
[1725250883577,9.49,129.6,129.59,0.05288002]
[1725250884883,3.9073004,129.62,129.59,0.05288002]
[1725250885085,9.49,129.6,129.59,0.05288002]
[1725250886786,9.49,129.6,129.58,2.11158002]
[1725250887688,9.49,129.6,129.58,2.16527825]
[1725250889090,9.49,129.61,129.59,3.8585]
[1725250890381,9.49,129.61,129.58,0.05369823]
[1725250890592,9.49,129.61,129.58,3.91239823]
[1725250891687,9.49,129.61,129.59,3.8584]
[1725250895185,9.49,129.61,129.58,3.91229823]
[1725250895586,9.49,129.59,129.58,0.05369823]
[1725250896094,9.49,129.59,129.5,6.0865]
[1725250896398,9.49,129.56,129.5,6.0865]
[1725250896594,13.41485815,129.56,129.5,6.0865]
[1725250897097,0.04902778,129.54,129.52,0.05885998]
[1725250897601,0.04902778,129.54,129.53,3.86]
[1725250900001,9.49,129.59,129.56,3.8593]
[1725250901095,9.5424058,129.59,129.56,3.91839731]
[1725250905098,9.5424058,129.59,129.57,3.859]
[1725250906298,9.5424058,129.59,129.56,3.91829731]
[1725250907604,9.49,129.57,129.56,0.05909731]
[1725250910100,9.49,129.57,129.56,3.91849731]
[1725250910405,13.4009058,129.59,129.56,3.91849731]
[1725250913807,9.49,129.58,129.56,3.91849731]
[1725250915303,9.49,129.58,129.56,0.05909731]
[1725250917010,9.49,129.58,129.56,3.91839731]
[1725250919406,0.0524058,129.59,129.56,3.95600293]
[1725250919907,0.0524058,129.59,129.57,2.107]
[1725250920106,0.0524058,129.59,129.58,3.8588]
[1725250923617,9.5424058,129.59,129.57,3.8589]
[1725250932214,9.49,129.58,129.56,0.0004]
[1725250932413,9.49,129.58,129.51,6.1215]
[1725250932414,9.49,129.57,129.51,4.1449]
[1725250932618,5.80547258,129.58,129.51,4.1449]
[1725250932915,9.49,129.57,129.51,13.6349]
[1725250933425,0.04942222,129.55,129.53,0.05572713]
[1725250934821,0.04942222,129.55,129.53,3.91592713]
[1725250935619,0.04942222,129.55,129.54,3.86]
[1725250935925,40.0171,129.6,129.53,9.54572713]